Workbook

Sheet Лист1
A1: Школа | C1: Лемезтамакская СОШ | F1: Утвердил: | G1: должность | H1: Зав.филиалом
A2: Типовое примерное меню приготавливаемых блюд | G2: фамилия | H2: Кутлуева Ф.Ф.
A3: Возрастная категория | E3: 7-11 лет | G3: дата | H3: 28 | I3: 5 | J3: 2026
H4: день | I4: месяц | J4: год
A5: Неделя | B5: День недели | C5: Прием пищи | D5: Раздел меню | E5: Блюда | F5: Вес блюда, г | G5: Белки | H5: Жиры | I5: Углеводы | J5: Калорийность | K5: № рецептуры | L5: Цена
A6: 1 | B6: 1 | C6: Завтрак | D6: гор.блюдо | E6: Суп молочный с рисом | F6: 250 | G6: 6.11 | H6: 5.62 | I6: 22.96 | J6: 166.8 | K6: 54-18к | L6: 22.15
D8: гор.напиток | E8: Кофейный напиток с молоком | F8: 200 | G8: 3.8 | H8: 2.9 | I8: 11.3 | J8: 86 | K8: 54-23гн | L8: 13.74
D9: хлеб | E9: Хлеб пшеничный с маслом сливочным (порциями), хлеб ржаной с сыром твердых сортов в нарезке | F9: 145 | G9: 11.81 | H9: 12.87 | I9: 49.69 | J9: 362.9 | K9: Пром,54-1з,54-19з | L9: 38.13
D10: сладкое | E10: Сок для детского питания (персиковый), Печенье | F10: 250 | G10: 4.35 | H10: 4.9 | I10: 70.2 | J10: 342.3 | K10: Пром | L10: 48
D15: итого | F15: =SUM(F6:F14) -> 845 | G15: =SUM(G6:G14) -> 26.07 | H15: =SUM(H6:H14) -> 26.29 | I15: =SUM(I6:I14) -> 154.15 | J15: =SUM(J6:J14) -> 958 | L15: =SUM(L6:L14) -> 122.02
A16: =A6 -> 1 | B16: =B6 -> 1 | C16: Обед | D16: закуска | E16: Салат из свежих помидоров и огурцов | F16: 90 | G16: 0.87 | H16: 4.63 | I16: 2.78 | J16: 56.1 | K16: 54-5з | L16: 24.09
D17: 1 блюдо | E17: Рассольник Ленинградский | F17: 250 | G17: 5.93 | H17: 7.21 | I17: 17.04 | J17: 157 | K17: 54-3с | L17: 19.36
D18: 2 блюдо | E18: Плов из отварной говядины | F18: 200 | G18: 15.32 | H18: 14.73 | I18: 38.58 | J18: 348.3 | K18: 54-11м | L18: 76.25
D19: гарнир
D20: напиток | E20: Чай с молоком и сахаром | F20: 200 | G20: 1.55 | H20: 1.14 | I20: 8.6 | J20: 50.9 | K20: 54-4гн | L20: 1.84
D21: хлеб бел. | E21: Хлеб пшеничный | F21: 60 | G21: 4.56 | H21: 0.48 | I21: 29.52 | J21: 140.6 | K21: Пром | L21: 5.64
D22: хлеб черн. | E22: Хлеб ржаной | F22: 60 | G22: 3.69 | H22: 0.72 | I22: 20.04 | J22: 102.5 | K22: Пром | L22: 5.64
D28: итого | F28: =SUM(F16:F27) -> 860 | G28: =SUM(G16:G27) -> 31.92 | H28: =SUM(H16:H27) -> 28.91 | I28: =SUM(I16:I27) -> 116.56 | J28: =SUM(J16:J27) -> 855.4 | L28: =SUM(L16:L27) -> 132.82
A29: =A6 -> 1 | B29: =B6 -> 1 | C29: Итого за день: | F29: =F15+F28 -> 1705 | G29: =G15+G28 -> 57.99 | H29: =H15+H28 -> 55.2 | I29: =I15+I28 -> 270.71 | J29: =J15+J28 -> 1813.4 | L29: =L15+L28 -> 254.84
A30: 1 | B30: 2 | C30: Завтрак | D30: гор.блюдо | E30: Каша "Дружба" | F30: 250 | G30: 6.25 | H30: 7.37 | I30: 30 | J30: 211.1 | K30: 54-16к | L30: 22.75
D32: гор.напиток | E32: Какао с молоком | F32: 200 | G32: 4.68 | H32: 3.52 | I32: 12.5 | J32: 100.4 | K32: 54-21гн | L32: 20.96
D33: хлеб | E33: Хлеб пшеничный с маслом сливочным (порциями), хлеб ржаной | F33: 85 | G33: 5.53 | H33: 7.95 | I33: 33.08 | J33: 226 | K33: Пром,54-19з | L33: 19.83
D34: фрукты | E34: Апельсин | F34: 200 | G34: 1.8 | H34: 0.4 | I34: 16.2 | J34: 113.4 | K34: Пром | L34: 52
D35: сладкое | E35: Печенье | F35: 50 | G35: 3.75 | H35: 4.9 | I35: 37.2 | J35: 207.9 | K35: Пром | L35: 13
D39: итого | F39: =SUM(F30:F38) -> 785 | G39: =SUM(G30:G38) -> 22.01 | H39: =SUM(H30:H38) -> 24.14 | I39: =SUM(I30:I38) -> 128.98 | J39: =SUM(J30:J38) -> 858.8 | L39: =SUM(L30:L38) -> 128.54
A40: =A30 -> 1 | B40: =B30 -> 2 | C40: Обед | D40: закуска | E40: Салат из белокочанной капусты | F40: 90 | G40: 2.28 | H40: 9.13 | I40: 9.35 | J40: 128.6 | K40: 54-7з | L40: 11.59
D41: 1 блюдо | E41: Свекольник (со сметаной) | F41: 250 | G41: 2.26 | H41: 5.32 | I41: 13.37 | J41: 110.4 | K41: 54-18с | L41: 15.72
D42: 2 блюдо | E42: Рагу из курицы | F42: 200 | G42: 20.95 | H42: 7.04 | I42: 17.52 | J42: 217.4 | K42: 54-22м | L42: 70.82
D43: гарнир
D44: напиток | E44: Кисель витаминизированный "Витоша" | F44: 200 | G44: 0 | H44: 0 | I44: 23.5 | J44: 95 | K44: 54-26хн | L44: 11.6
D45: хлеб бел. | E45: Хлеб пшеничный | F45: 60 | G45: 4.56 | H45: 0.48 | I45: 29.52 | J45: 140.6 | K45: Пром | L45: 2.82
D46: хлеб черн. | E46: Хлеб ржаной | F46: 60 | G46: 3.69 | H46: 0.72 | I46: 20.04 | J46: 102.5 | K46: Пром | L46: 2.82
D52: итого | F52: =SUM(F40:F51) -> 860 | G52: =SUM(G40:G51) -> 33.74 | H52: =SUM(H40:H51) -> 22.69 | I52: =SUM(I40:I51) -> 113.3 | J52: =SUM(J40:J51) -> 794.5 | L52: =SUM(L40:L51) -> 115.37
A53: =A30 -> 1 | B53: =B30 -> 2 | C53: Итого за день: | F53: =F39+F52 -> 1645 | G53: =G39+G52 -> 55.75 | H53: =H39+H52 -> 46.83 | I53: =I39+I52 -> 242.28 | J53: =J39+J52 -> 1653.3 | L53: =L39+L52 -> 243.91
A54: 1 | B54: 3 | C54: Завтрак | D54: гор.блюдо | E54: Каша вязкая молочная пшеничная | F54: 250 | G54: 10.39 | H54: 12.64 | I54: 47.06 | J54: 343.5 | K54: 54-6к | L54: 32.29
D56: гор.напиток | E56: Напиток витаминизированный "Витоша" | F56: 200 | G56: 0 | H56: 0 | I56: 19.4 | J56: 77.6 | K56: 27,01,24 | L56: 8.76
D57: хлеб | E57: Хлеб пшеничный с маслом сливочным (порциями), с сыром твердых сортов в нарезке | F57: 85 | G57: 8.12 | H57: 12.15 | I57: 29.65 | J57: 260.4 | K57: Пром,54-1з,54-19з | L57: 32.67
D58: фрукты | E58: Яблоко | F58: 200 | G58: 0.8 | H58: 0.8 | I58: 19.6 | J58: 88.8 | K58: Пром | L58: 34
D59: сладкое | E59: Печенье | F59: 50 | G59: 3.75 | H59: 4.9 | I59: 37.2 | J59: 207.9 | K59: Пром | L59: 13
D63: итого | F63: =SUM(F54:F62) -> 785 | G63: =SUM(G54:G62) -> 23.06 | H63: =SUM(H54:H62) -> 30.49 | I63: =SUM(I54:I62) -> 152.91 | J63: =SUM(J54:J62) -> 978.2 | L63: =SUM(L54:L62) -> 120.72
A64: =A54 -> 1 | B64: =B54 -> 3 | C64: Обед | D64: закуска | E64: Помидор в нарезке | F64: 90 | G64: 0.99 | H64: 0.18 | I64: 3.42 | J64: 19.3 | K64: 54-3з | L64: 6.12
D65: 1 блюдо | E65: Суп гороховый | F65: 250 | G65: 8.16 | H65: 3.48 | I65: 18.65 | J65: 138.6 | K65: 54-8с | L65: 9
D66: 2 блюдо | E66: Котлета из говядины | F66: 90 | G66: 16.43 | H66: 15.66 | I66: 14.79 | J66: 265.7 | K66: 54-4м | L66: 92.64
D67: гарнир | E67: Макароны отварные с соусом красным основным | F67: 170 | G67: 5.98 | H67: 5.4 | I67: 34.58 | J67: 211 | K67: 54-1г, 54-3осус | L67: 18.22
D68: напиток | E68: Чай с лимоном и сахаром | F68: 200 | G68: 0.25 | H68: 0.05 | I68: 6.61 | J68: 27.9 | K68: 54-3н | L68: 3.24
D69: хлеб бел. | E69: Хлеб пшеничный | F69: 30 | G69: 2.3 | H69: 0.25 | I69: 14.75 | J69: 70.3 | K69: Пром | L69: 1.88
D70: хлеб черн. | E70: Хлеб ржаной | F70: 25 | G70: 1.7 | H70: 0.3 | I70: 8.4 | J70: 42.7 | K70: Пром | L70: 2.35
D76: итого | F76: =SUM(F64:F75) -> 855 | G76: =SUM(G64:G75) -> 35.81 | H76: =SUM(H64:H75) -> 25.32 | I76: =SUM(I64:I75) -> 101.2 | J76: =SUM(J64:J75) -> 775.5 | L76: =SUM(L64:L75) -> 133.45
A77: =A54 -> 1 | B77: =B54 -> 3 | C77: Итого за день: | F77: =F63+F76 -> 1640 | G77: =G63+G76 -> 58.87 | H77: =H63+H76 -> 55.81 | I77: =I63+I76 -> 254.11 | J77: =J63+J76 -> 1753.7 | L77: =L63+L76 -> 254.17
A78: 1 | B78: 4 | C78: Завтрак | D78: гор.блюдо | E78: Каша жидкая молочная рисовая | F78: 250 | G78: 5.74 | H78: 7.2 | I78: 30.33 | J78: 209 | K78: 54-26к | L78: 25.2
D80: гор.напиток | E80: Кофейный напиток с молоком | F80: 200 | G80: 3.8 | H80: 2.9 | I80: 11.3 | J80: 86 | K80: 54-23гн | L80: 13.74
D81: хлеб | E81: Хлеб пшеничный с маслом сливочным (порциями), хлеб ржаной | F81: 85 | G81: 5.53 | H81: 7.95 | I81: 33.08 | J81: 226 | K81: Пром,54-19з | L81: 19.83
D82: фрукты | E82: Банан | F82: 200 | G82: 3 | H82: 1 | I82: 42 | J82: 189 | K82: Пром | L82: 46
D83: сладкое | E83: Печенье | F83: 50 | G83: 3.75 | H83: 4.9 | I83: 37.2 | J83: 207.9 | K83: Пром | L83: 13
D87: итого | F87: =SUM(F78:F86) -> 785 | G87: =SUM(G78:G86) -> 21.82 | H87: =SUM(H78:H86) -> 23.95 | I87: =SUM(I78:I86) -> 153.91 | J87: =SUM(J78:J86) -> 917.9 | L87: =SUM(L78:L86) -> 117.77
A88: =A78 -> 1 | B88: =B78 -> 4 | C88: Обед | D88: закуска | E88: Огурец в нарезке | F88: 90 | G88: 0.72 | H88: 0.09 | I88: 2.25 | J88: 12.7 | K88: 54-2з | L88: 26.52
D89: 1 блюдо | E89: Суп картофельный с макаронными изделиями | F89: 250 | G89: 5.98 | H89: 2.71 | I89: 19.42 | J89: 126 | K89: 54-7с | L89: 19.6
D90: 2 блюдо | E90: Гуляш из говядины | F90: 90 | G90: 15.31 | H90: 14.86 | I90: 3.51 | J90: 208.9 | K90: 54-2м | L90: 93.72
D91: гарнир | E91: Картофельное пюре | F91: 180 | G91: 3.69 | H91: 6.37 | I91: 23.79 | J91: 167.3 | K91: 54-11г | L91: 26.16
D92: напиток | E92: Компот из смеси сухофруктов | F92: 200 | G92: 0.47 | H92: 0 | I92: 19.78 | J92: 81 | K92: 54-1хн | L92: 6.26
D93: хлеб бел. | E93: Хлеб пшеничный | F93: 45 | G93: 3.4 | H93: 0.4 | I93: 22.1 | J93: 105.5 | K93: Пром | L93: 4.23
D94: хлеб черн. | E94: Хлеб ржаной | F94: 30 | G94: 1.98 | H94: 0.36 | I94: 10.02 | J94: 51.2 | K94: Пром | L94: 2.82
D99: итого | F99: =SUM(F88:F98) -> 885 | G99: =SUM(G88:G98) -> 31.55 | H99: =SUM(H88:H98) -> 24.79 | I99: =SUM(I88:I98) -> 100.87 | J99: =SUM(J88:J98) -> 752.6 | L99: =SUM(L88:L98) -> 179.31
A100: =A78 -> 1 | B100: =B78 -> 4 | C100: Итого за день: | F100: =F87+F99 -> 1670 | G100: =G87+G99 -> 53.37 | H100: =H87+H99 -> 48.74 | I100: =I87+I99 -> 254.78 | J100: =J87+J99 -> 1670.5 | L100: =L87+L99 -> 297.08
A101: 1 | B101: 5 | C101: Завтрак | D101: гор.блюдо | E101: Омлет натуральный | F101: 200 | G101: 16.91 | H101: 23.97 | I101: 4.32 | J101: 300.7 | K101: 54-1о | L101: 67.29
D103: гор.напиток | E103: Чай с сахаром | F103: 200 | G103: 0.11 | H103: 0.03 | I103: 5.18 | J103: 21.4 | K103: 54-2гн | L103: 1.84
D104: хлеб | E104: Хлеб пшеничный, хлеб ржаной | F104: 110 | G104: 7.49 | H104: 1.12 | I104: 44.64 | J104: 219.7 | K104: Пром | L104: 7.52
D105: сладкое | E105: Кисломолочный продукт для детского питания (йогурт), Печенье | F105: 150 | G105: 6.95 | H105: 8.1 | I105: 41.7 | J105: 269.9 | K105: Пром | L105: 68
D111: итого | F111: =SUM(F101:F110) -> 660 | G111: =SUM(G101:G110) -> 31.46 | H111: =SUM(H101:H110) -> 33.22 | I111: =SUM(I101:I110) -> 95.84 | J111: =SUM(J101:J110) -> 811.7 | L111: =SUM(L101:L110) -> 144.65
A112: =A101 -> 1 | B112: =B101 -> 5 | C112: Обед | D112: закуска | E112: Салат из моркови и яблок | F112: 90 | G112: 0.82 | H112: 9.15 | I112: 6.44 | J112: 111.4 | K112: 54-11з | L112: 11.32
D113: 1 блюдо | E113: Щи из свежей капусты со сметаной | F113: 250 | G113: 5.81 | H113: 7.05 | I113: 7.15 | J113: 115.2 | K113: 54-1с | L113: 13.21
D114: 2 блюдо | E114: Курица тушеная с морковью | F114: 100 | G114: 14.12 | H114: 5.78 | I114: 4.46 | J114: 126.4 | K114: 54-25м | L114: 49.47
D115: гарнир | E115: Каша пшенная рассыпчатая | F115: 150 | G115: 6.38 | H115: 6.48 | I115: 35.49 | J115: 225.8 | K115: 54-12к | L115: 13
D116: напиток | E116: Кисель из апельсинов | F116: 200 | G116: 0.43 | H116: 0.09 | I116: 14.32 | J116: 318 | K116: 54-20хн | L116: 21.63
D117: хлеб бел. | E117: Хлеб пшеничный | F117: 50 | G117: 3.8 | H117: 0.4 | I117: 24.6 | J117: 117.2 | K117: Пром | L117: 4.7
D118: хлеб черн. | E118: Хлеб ржаный | F118: 25 | G118: 1.65 | H118: 0.3 | I118: 8.35 | J118: 42.7 | K118: Пром | L118: 2
D124: итого | F124: =SUM(F112:F123) -> 865 | G124: =SUM(G112:G123) -> 33.01 | H124: =SUM(H112:H123) -> 29.25 | I124: =SUM(I112:I123) -> 100.81 | J124: =SUM(J112:J123) -> 1056.7 | L124: =SUM(L112:L123) -> 115.33
A125: =A101 -> 1 | B125: =B101 -> 5 | C125: Итого за день: | F125: =F111+F124 -> 1525 | G125: =G111+G124 -> 64.47 | H125: =H111+H124 -> 62.47 | I125: =I111+I124 -> 196.65 | J125: =J111+J124 -> 1868.4 | L125: =L111+L124 -> 259.98
A126: 2 | B126: 1 | C126: Завтрак | D126: гор.блюдо | E126: Каша вязкая молочная пшеничная с изюмом | F126: 250 | G126: 10.16 | H126: 12.1 | I126: 51.94 | J126: 357.3 | K126: 54-7к | L126: 37
D128: гор.напиток | E128: Напиток витаминизированный "Витоша" | F128: 200 | G128: 0 | H128: 0 | I128: 19.4 | J128: 77.6 | K128: 27,01,24 | L128: 8.76
D129: хлеб | E129: Хлеб пшеничный с маслом сливочным (порциями), хлеб ржаной с сыром твердых сортов в нарезке | F129: 125 | G129: 10.66 | H129: 12.67 | I129: 41.43 | J129: 322.4 | K129: Пром,54-1з,54-19з | L129: 32.67
D130: сладкое | E130: Сок для детского питания (персиковый), Печенье | F130: 250 | G130: 4.35 | H130: 4.9 | I130: 70.2 | J130: 342.3 | K130: Пром | L130: 48
D135: итого | F135: =SUM(F126:F134) -> 825 | G135: =SUM(G126:G134) -> 25.17 | H135: =SUM(H126:H134) -> 29.67 | I135: =SUM(I126:I134) -> 182.97 | J135: =SUM(J126:J134) -> 1099.6 | L135: =SUM(L126:L134) -> 126.43
A136: =A126 -> 2 | B136: =B126 -> 1 | C136: Обед | D136: закуска | E136: Огурец в нарезке | F136: 90 | G136: 0.72 | H136: 0.09 | I136: 2.25 | J136: 12.7 | K136: 54-2з | L136: 26.52
D137: 1 блюдо | E137: Суп картофельный с клецками | F137: 250 | G137: 5.76 | H137: 4.1 | I137: 14.25 | J137: 117 | K137: 54-6с | L137: 10.16
D138: 2 блюдо | E138: Плов из отварной говядины | F138: 200 | G138: 15.32 | H138: 14.73 | I138: 38.58 | J138: 348.3 | K138: 54-11м | L138: 76.8
D139: гарнир
D140: напиток | E140: Компот из свежих яблок | F140: 200 | G140: 0.15 | H140: 0.14 | I140: 9.93 | J140: 41.5 | K140: 54-32хн | L140: 9.75
D141: хлеб бел. | E141: Хлеб пшеничный | F141: 50 | G141: 3.8 | H141: 0.4 | I141: 24.6 | J141: 117.2 | K141: Пром | L141: 4.7
D142: хлеб черн. | E142: Хлеб ржаной | F142: 50 | G142: 3.3 | H142: 0.6 | I142: 16.7 | J142: 85.4 | K142: Пром | L142: 4.7
D148: итого | F148: =SUM(F136:F147) -> 840 | G148: =SUM(G136:G147) -> 29.05 | H148: =SUM(H136:H147) -> 20.06 | I148: =SUM(I136:I147) -> 106.31 | J148: =SUM(J136:J147) -> 722.1 | L148: =SUM(L136:L147) -> 132.63
A149: =A126 -> 2 | B149: =B126 -> 1 | C149: Итого за день: | F149: =F135+F148 -> 1665 | G149: =G135+G148 -> 54.22 | H149: =H135+H148 -> 49.73 | I149: =I135+I148 -> 289.28 | J149: =J135+J148 -> 1821.7 | L149: =L135+L148 -> 259.06
A150: 2 | B150: 2 | C150: Завтрак | D150: гор.блюдо | E150: Суп молочный с макаронными изделиями | F150: 250 | G150: 6.88 | H150: 5.68 | I150: 22.33 | J150: 167.78 | K150: 54-19к | L150: 23.49
D152: гор.напиток | E152: Какао с молоком | F152: 200 | G152: 4.6 | H152: 3.6 | I152: 12.6 | J152: 100.4 | K152: 54-21гн | L152: 20.96
D153: хлеб | E153: Хлеб пшеничный с маслом сливочным (порциями), хлеб ржаной | F153: 90 | G153: 5.88 | H153: 8.05 | I153: 34.73 | J153: 234.5 | K153: Пром,54-19з | L153: 18.42
D154: фрукты | E154: Груша | F154: 200 | G154: 0.8 | H154: 0.6 | I154: 20.6 | J154: 91 | K154: Пром | L154: 60
D160: итого | F160: =SUM(F150:F159) -> 740 | G160: =SUM(G150:G159) -> 18.16 | H160: =SUM(H150:H159) -> 17.93 | I160: =SUM(I150:I159) -> 90.26 | J160: =SUM(J150:J159) -> 593.68 | L160: =SUM(L150:L159) -> 122.87
A161: =A150 -> 2 | B161: =B150 -> 2 | C161: Обед | D161: закуска | E161: Салат из свеклы отварной | F161: 100 | G161: 1.34 | H161: 4.48 | I161: 7.61 | J161: 76.1 | K161: 54-13з | L161: 8.26
D162: 1 блюдо | E162: Борщ с капустой и картофелем со сметаной | F162: 250 | G162: 5.89 | H162: 7.09 | I162: 12.68 | J162: 137.9 | K162: 54-2с | L162: 16.97
D163: 2 блюдо | E163: Жаркое по-домашнему | F163: 200 | G163: 20.1 | H163: 18.7 | I163: 17.2 | J163: 318 | K163: 54-9м | L163: 125.49
D164: гарнир
D165: напиток | E165: Компот из смеси сухофруктов | F165: 200 | G165: 0.47 | H165: 0 | I165: 19.78 | J165: 81 | K165: 54-1хн | L165: 6.26
D166: хлеб бел. | E166: Хлеб пшеничный | F166: 60 | G166: 4.56 | H166: 0.48 | I166: 29.52 | J166: 140.6 | K166: Пром | L166: 5.64
D167: хлеб черн. | E167: Хлеб ржаной | F167: 60 | G167: 3.69 | H167: 0.72 | I167: 20.04 | J167: 102.5 | K167: Пром | L167: 5.64
D173: итого | F173: =SUM(F161:F172) -> 870 | G173: =SUM(G161:G172) -> 36.05 | H173: =SUM(H161:H172) -> 31.47 | I173: =SUM(I161:I172) -> 106.83 | J173: =SUM(J161:J172) -> 856.1 | L173: =SUM(L161:L172) -> 168.26
A174: =A150 -> 2 | B174: =B150 -> 2 | C174: Итого за день: | F174: =F160+F173 -> 1610 | G174: =G160+G173 -> 54.21 | H174: =H160+H173 -> 49.4 | I174: =I160+I173 -> 197.09 | J174: =J160+J173 -> 1449.78 | L174: =L160+L173 -> 291.13
A175: 2 | B175: 3 | C175: Завтрак | D175: гор.блюдо | E175: Каша вязкая молочная овсяная | F175: 250 | G175: 10.73 | H175: 14.07 | I175: 42.86 | J175: 341 | K175: 54-9к | L175: 33.3
D177: гор.напиток | E177: Кофейный напиток с молоком | F177: 200 | G177: 3.8 | H177: 2.9 | I177: 11.3 | J177: 86 | K177: 54-23гн | L177: 13.74
D178: хлеб | E178: Хлеб пшеничный, хлеб ржаной | F178: 80 | G178: 5.8 | H178: 0.8 | I178: 34.6 | J178: 168.4 | K178: Пром | L178: 5.64
D179: фрукты | E179: Абрикос | F179: 100 | G179: 0.9 | H179: 0.1 | I179: 9 | J179: 40.5 | K179: Пром | L179: 40
D180: сладкое | E180: Печенье | F180: 50 | G180: 3.75 | H180: 4.9 | I180: 37.2 | J180: 207.9 | K180: Пром | L180: 13
D184: итого | F184: =SUM(F175:F183) -> 680 | G184: =SUM(G175:G183) -> 24.98 | H184: =SUM(H175:H183) -> 22.77 | I184: =SUM(I175:I183) -> 134.96 | J184: =SUM(J175:J183) -> 843.8 | L184: =SUM(L175:L183) -> 105.68
A185: =A175 -> 2 | B185: =B175 -> 3 | C185: Обед | D185: закуска | E185: Салат из свежих помидоров и огурцов | F185: 90 | G185: 0.87 | H185: 4.63 | I185: 2.78 | J185: 56.1 | K185: 54-5з | L185: 27.81
D186: 1 блюдо | E186: Суп крестьянский с крупой (крупа перловая) | F186: 250 | G186: 6.4 | H186: 7.24 | I186: 13.47 | J186: 144.5 | K186: 54-11с | L186: 12.07
D187: 2 блюдо | E187: Котлета из курицы | F187: 90 | G187: 17.18 | H187: 3.88 | I187: 12.04 | J187: 151.8 | K187: 54-5м | L187: 51.38
D188: гарнир | E188: Рис припущенный с томатом | F188: 150 | G188: 3.75 | H188: 4.42 | I188: 36.32 | J188: 200.1 | K188: 54-27г | L188: 15.71
D189: напиток | E189: Чай с молоком и сахаром | F189: 200 | G189: 1.55 | H189: 1.14 | I189: 8.6 | J189: 50.9 | K189: 54-4гн | L189: 6.79
D190: хлеб бел. | E190: Хлеб пшеничный | F190: 50 | G190: 3.8 | H190: 0.4 | I190: 24.6 | J190: 117.2 | K190: Пром | L190: 4.7
D191: хлеб черн. | E191: Хлеб ржаной | F191: 50 | G191: 3.3 | H191: 0.6 | I191: 16.7 | J191: 85.4 | K191: Пром | L191: 4.7
D196: итого | F196: =SUM(F185:F195) -> 880 | G196: =SUM(G185:G195) -> 36.85 | H196: =SUM(H185:H195) -> 22.31 | I196: =SUM(I185:I195) -> 114.51 | J196: =SUM(J185:J195) -> 806 | L196: =SUM(L185:L195) -> 123.16
A197: =A175 -> 2 | B197: =B175 -> 3 | C197: Итого за день: | F197: =F184+F196 -> 1560 | G197: =G184+G196 -> 61.83 | H197: =H184+H196 -> 45.08 | I197: =I184+I196 -> 249.47 | J197: =J184+J196 -> 1649.8 | L197: =L184+L196 -> 228.84
A198: 2 | B198: 4 | C198: Завтрак | D198: гор.блюдо | E198: Каша жидкая молочная манная | F198: 250 | G198: 6.69 | H198: 7.19 | I198: 31.62 | J198: 217.8 | K198: 54-27к | L198: 23.97
D200: гор.напиток | E200: Какао с молоком | F200: 200 | G200: 4.6 | H200: 3.6 | I200: 12.6 | J200: 100.4 | K200: 54-21гн | L200: 18
D201: хлеб | E201: Хлеб пшеничный с маслом сливочным (порциями), хлеб ржаной с сыром твердых сортов в нарезке | F201: 105 | G201: 9.36 | H201: 12.47 | I201: 34.73 | J201: 288.2 | K201: Пром,54-1з,54-19з | L201: 32.67
D202: фрукты | E202: Яблоко | F202: 200 | G202: 0.8 | H202: 0.8 | I202: 19.6 | J202: 88.8 | K202: Пром | L202: 34
D207: итого | F207: =SUM(F198:F206) -> 755 | G207: =SUM(G198:G206) -> 21.45 | H207: =SUM(H198:H206) -> 24.06 | I207: =SUM(I198:I206) -> 98.55 | J207: =SUM(J198:J206) -> 695.2 | L207: =SUM(L198:L206) -> 108.64
A208: =A198 -> 2 | B208: =B198 -> 4 | C208: Обед | D208: закуска | E208: Огурец, помидор в нарезке | F208: 100 | G208: 0.95 | H208: 0.15 | I208: 3.15 | J208: 17.8 | K208: ДП-12ос | L208: 26.52
D209: 1 блюдо | E209: Уха ростовская | F209: 250 | G209: 7.76 | H209: 4.29 | I209: 12.41 | J209: 119.4 | K209: 54-32с | L209: 29.73
D210: 2 блюдо | E210: Рыба тушеная в томате с овощами (горбуша) | F210: 100 | G210: 16.1 | H210: 11.3 | I210: 6.3 | J210: 191.9 | K210: 154-10р | L210: 82.2
D211: гарнир | E211: Каша гречневая рассыпчатая | F211: 180 | G211: 9.87 | H211: 7.61 | I211: 43.12 | J211: 280.5 | K211: 54-4г | L211: 14.9
D212: напиток | E212: Чай с сахаром | F212: 200 | G212: 0.2 | H212: 0 | I212: 6.5 | J212: 26.8 | K212: 54-2гн | L212: 1.84
D213: хлеб бел. | E213: Хлеб пшеничный | F213: 50 | G213: 3.8 | H213: 0.4 | I213: 24.6 | J213: 117.2 | K213: Пром | L213: 4.7
D214: хлеб черн. | E214: Хлеб ржаной | F214: 50 | G214: 3.3 | H214: 0.6 | I214: 16.7 | J214: 85.4 | K214: Пром | L214: 4.7
D220: итого | F220: =SUM(F208:F219) -> 930 | G220: =SUM(G208:G219) -> 41.98 | H220: =SUM(H208:H219) -> 24.35 | I220: =SUM(I208:I219) -> 112.78 | J220: =SUM(J208:J219) -> 839 | L220: =SUM(L208:L219) -> 164.59
A221: =A198 -> 2 | B221: =B198 -> 4 | C221: Итого за день: | F221: =F207+F220 -> 1685 | G221: =G207+G220 -> 63.43 | H221: =H207+H220 -> 48.41 | I221: =I207+I220 -> 211.33 | J221: =J207+J220 -> 1534.2 | L221: =L207+L220 -> 273.23
A222: 2 | B222: 5 | C222: Завтрак | D222: гор.блюдо | E222: Запеканка из творога, молоко сгущенное с сахаром | F222: 220 | G222: 40.99 | H222: 15.93 | I222: 39.96 | J222: 467.2 | K222: 54-1т, Пром | L222: 101.49
D224: гор.напиток | E224: Кофейный напиток с молоком | F224: 200 | G224: 3.8 | H224: 2.9 | I224: 11.3 | J224: 86 | K224: 54-23гн | L224: 13.74
D225: хлеб | E225: Хлеб пшеничный с маслом сливочным (порциями), хлеб ржаной | F225: 290 | G225: 9.59 | H225: 10.97 | I225: 45.22 | J225: 317.4 | K225: Пром,54-19з | L225: 18.42
D226: фрукты | E226: Банан, Мандарин | F226: 300 | G226: 3.8 | H226: 1.2 | I226: 49.5 | J226: 224 | K226: Пром | L226: 80
D231: итого | F231: =SUM(F222:F230) -> 1010 | G231: =SUM(G222:G230) -> 58.18 | H231: =SUM(H222:H230) -> 31 | I231: =SUM(I222:I230) -> 145.98 | J231: =SUM(J222:J230) -> 1094.6 | L231: =SUM(L222:L230) -> 213.65
A232: =A222 -> 2 | B232: =B222 -> 5 | C232: Обед | D232: закуска | E232: Салат из белокочанной капусты с помидорами и огурцами | F232: 90 | G232: 2.03 | H232: 9.92 | I232: 3.22 | J232: 110.2 | K232: 54-7з | L232: 19.51
D233: 1 блюдо | E233: Суп картофельный с макаронными изделиями | F233: 200 | G233: 4.7 | H233: 2.17 | I233: 15.53 | J233: 100.9 | K233: 54-24с | L233: 12.06
D234: 2 блюдо | E234: Куриные палочки в панировке | F234: 100 | G234: 22.72 | H234: 2.69 | I234: 9.71 | J234: 154 | K234: 54-ДП-4м | L234: 67.78
D235: гарнир | E235: Каша перловая рассыпчатая | F235: 150 | G235: 4.43 | H235: 5.27 | I235: 30.5 | J235: 187.1 | K235: 54-5г | L235: 16.08
D236: напиток | E236: Чай с лимоном и сахаром | F236: 200 | G236: 0.25 | H236: 0.05 | I236: 6.61 | J236: 27.9 | K236: 54-3н | L236: 3.24
D237: хлеб бел. | E237: Хлеб пшеничный | F237: 60 | G237: 4.56 | H237: 0.48 | I237: 29.52 | J237: 140.6 | K237: Пром | L237: 5.64
D238: хлеб черн. | E238: Хлеб ржаной | F238: 60 | G238: 3.69 | H238: 0.72 | I238: 20.04 | J238: 102.5 | K238: Пром | L238: 5.64
D243: итого | F243: =SUM(F232:F242) -> 860 | G243: =SUM(G232:G242) -> 42.38 | H243: =SUM(H232:H242) -> 21.3 | I243: =SUM(I232:I242) -> 115.13 | J243: =SUM(J232:J242) -> 823.2 | L243: =SUM(L232:L242) -> 129.95
A244: =A222 -> 2 | B244: =B222 -> 5 | C244: Итого за день: | F244: =F231+F243 -> 1870 | G244: =G231+G243 -> 100.56 | H244: =H231+H243 -> 52.3 | I244: =I231+I243 -> 261.11 | J244: =J231+J243 -> 1917.8 | L244: =L231+L243 -> 343.6
A245: 3 | B245: 1 | C245: Завтрак | D245: гор.блюдо | E245: Суп молочный с рисом | F245: 250 | G245: 6.11 | H245: 5.62 | I245: 22.96 | J245: 166.8 | K245: 54-18к | L245: 22.15
D247: гор.напиток | E247: Кофейный напиток с молоком | F247: 200 | G247: 3.8 | H247: 2.9 | I247: 11.3 | J247: 86 | K247: 54-23гн | L247: 13.74
D248: хлеб | E248: Хлеб пшеничный с маслом сливочным (порциями), хлеб ржаной с сыром твердых сортов в нарезке | F248: 145 | G248: 11.81 | H248: 12.87 | I248: 49.69 | J248: 362.9 | K248: Пром,54-1з,54-19з | L248: 38.13
D249: сладкое | E249: Сок для детского питания (персиковый), Печенье | F249: 250 | G249: 4.35 | H249: 4.9 | I249: 70.2 | J249: 342.3 | K249: Пром | L249: 48
D254: итого | F254: =SUM(F245:F253) -> 845 | G254: =SUM(G245:G253) -> 26.07 | H254: =SUM(H245:H253) -> 26.29 | I254: =SUM(I245:I253) -> 154.15 | J254: =SUM(J245:J253) -> 958 | L254: =SUM(L245:L253) -> 122.02
A255: =A245 -> 3 | B255: =B245 -> 1 | C255: Обед | D255: закуска | E255: Салат из свежих помидоров и огурцов | F255: 90 | G255: 0.87 | H255: 4.63 | I255: 2.78 | J255: 56.1 | K255: 54-5з | L255: 24.09
D256: 1 блюдо | E256: Рассольник Ленинградский | F256: 250 | G256: 5.93 | H256: 7.21 | I256: 17.04 | J256: 157 | K256: 54-3с | L256: 19.36
D257: 2 блюдо | E257: Плов из отварной говядины | F257: 200 | G257: 15.32 | H257: 14.73 | I257: 38.58 | J257: 348.3 | K257: 54-11м | L257: 76.25
D258: гарнир
D259: напиток | E259: Чай с молоком и сахаром | F259: 200 | G259: 1.55 | H259: 1.14 | I259: 8.6 | J259: 50.9 | K259: 54-4гн | L259: 1.84
D260: хлеб бел. | E260: Хлеб пшеничный | F260: 60 | G260: 4.56 | H260: 0.48 | I260: 29.52 | J260: 140.6 | K260: Пром | L260: 5.64
D261: хлеб черн. | E261: Хлеб ржаной | F261: 60 | G261: 3.69 | H261: 0.72 | I261: 20.04 | J261: 102.5 | K261: Пром | L261: 5.64
D267: итого | F267: =SUM(F255:F266) -> 860 | G267: =SUM(G255:G266) -> 31.92 | H267: =SUM(H255:H266) -> 28.91 | I267: =SUM(I255:I266) -> 116.56 | J267: =SUM(J255:J266) -> 855.4 | L267: =SUM(L255:L266) -> 132.82
A268: =A245 -> 3 | B268: =B245 -> 1 | C268: Итого за день: | F268: =F254+F267 -> 1705 | G268: =G254+G267 -> 57.99 | H268: =H254+H267 -> 55.2 | I268: =I254+I267 -> 270.71 | J268: =J254+J267 -> 1813.4 | L268: =L254+L267 -> 254.84
A269: 3 | B269: 2 | C269: Завтрак | D269: гор.блюдо | E269: Каша "Дружба" | F269: 250 | G269: 6.25 | H269: 7.37 | I269: 30 | J269: 211.1 | K269: 54-16к | L269: 22.75
D271: гор.напиток | E271: Какао с молоком | F271: 200 | G271: 4.68 | H271: 3.52 | I271: 12.5 | J271: 100.4 | K271: 54-21гн | L271: 20.96
D272: хлеб | E272: Хлеб пшеничный с маслом сливочным (порциями), хлеб ржаной | F272: 85 | G272: 5.53 | H272: 7.95 | I272: 33.08 | J272: 226 | K272: Пром,54-19з | L272: 19.83
D273: фрукты | E273: Апельсин | F273: 200 | G273: 1.8 | H273: 0.4 | I273: 16.2 | J273: 113.4 | K273: Пром | L273: 52
D274: сладкое | E274: Печенье | F274: 50 | G274: 3.75 | H274: 4.9 | I274: 37.2 | J274: 207.9 | K274: Пром | L274: 13
D279: итого | F279: =SUM(F269:F278) -> 785 | G279: =SUM(G269:G278) -> 22.01 | H279: =SUM(H269:H278) -> 24.14 | I279: =SUM(I269:I278) -> 128.98 | J279: =SUM(J269:J278) -> 858.8 | L279: =SUM(L269:L278) -> 128.54
A280: 3 | B280: =B269 -> 2 | C280: Обед | D280: закуска | E280: Салат из белокочанной капусты | F280: 90 | G280: 2.28 | H280: 9.13 | I280: 9.35 | J280: 128.6 | K280: 54-7з | L280: 11.59
D281: 1 блюдо | E281: Свекольник (со сметаной) | F281: 250 | G281: 2.26 | H281: 5.32 | I281: 13.37 | J281: 110.4 | K281: 54-18с | L281: 15.72
D282: 2 блюдо | E282: Рагу из курицы | F282: 200 | G282: 20.95 | H282: 7.04 | I282: 17.52 | J282: 217.4 | K282: 54-22м | L282: 70.82
D283: гарнир
D284: напиток | E284: Кисель витаминизированный "Витоша" | F284: 200 | G284: 0 | H284: 0 | I284: 23.5 | J284: 95 | K284: 54-26хн | L284: 11.6
D285: хлеб бел. | E285: Хлеб пшеничный | F285: 60 | G285: 4.56 | H285: 0.48 | I285: 29.52 | J285: 140.6 | K285: Пром | L285: 2.82
D286: хлеб черн. | E286: Хлеб ржаной | F286: 60 | G286: 3.69 | H286: 0.72 | I286: 20.04 | J286: 102.5 | K286: Пром | L286: 2.82
D292: итого | F292: =SUM(F280:F291) -> 860 | G292: =SUM(G280:G291) -> 33.74 | H292: =SUM(H280:H291) -> 22.69 | I292: =SUM(I280:I291) -> 113.3 | J292: =SUM(J280:J291) -> 794.5 | L292: =SUM(L280:L291) -> 115.37
A293: =A269 -> 3 | B293: =B269 -> 2 | C293: Итого за день: | F293: =F279+F292 -> 1645 | G293: =G279+G292 -> 55.75 | H293: =H279+H292 -> 46.83 | I293: =I279+I292 -> 242.28 | J293: =J279+J292 -> 1653.3 | L293: =L279+L292 -> 243.91
A294: 3 | B294: 3 | C294: Завтрак | D294: гор.блюдо | E294: Каша вязкая молочная пшеничная | F294: 250 | G294: 10.39 | H294: 12.64 | I294: 47.06 | J294: 343.5 | K294: 54-6к | L294: 32.29
D296: гор.напиток | E296: Напиток витаминизированный "Витоша" | F296: 200 | G296: 0 | H296: 0 | I296: 19.4 | J296: 77.6 | K296: 27,01,24 | L296: 8.76
D297: хлеб | E297: Хлеб пшеничный с маслом сливочным (порциями), с сыром твердых сортов в нарезке | F297: 85 | G297: 8.12 | H297: 12.15 | I297: 29.65 | J297: 260.4 | K297: Пром,54-1з,54-19з | L297: 32.67
D298: фрукты | E298: Яблоко | F298: 200 | G298: 0.8 | H298: 0.8 | I298: 19.6 | J298: 88.8 | K298: Пром | L298: 34
D299: сладкое | E299: Печенье | F299: 50 | G299: 3.75 | H299: 4.9 | I299: 37.2 | J299: 207.9 | K299: Пром | L299: 13
D303: итого | F303: =SUM(F294:F302) -> 785 | G303: =SUM(G294:G302) -> 23.06 | H303: =SUM(H294:H302) -> 30.49 | I303: =SUM(I294:I302) -> 152.91 | J303: =SUM(J294:J302) -> 978.2 | L303: =SUM(L294:L302) -> 120.72
A304: 3 | B304: =B294 -> 3 | C304: Обед | D304: закуска | E304: Помидор в нарезке | F304: 90 | G304: 0.99 | H304: 0.18 | I304: 3.42 | J304: 19.3 | K304: 54-3з | L304: 6.12
D305: 1 блюдо | E305: Суп гороховый | F305: 250 | G305: 8.16 | H305: 3.48 | I305: 18.65 | J305: 138.6 | K305: 54-8с | L305: 9
D306: 2 блюдо | E306: Котлета из говядины | F306: 90 | G306: 16.43 | H306: 15.66 | I306: 14.79 | J306: 265.7 | K306: 54-4м | L306: 92.64
D307: гарнир | E307: Макароны отварные с соусом красным основным | F307: 170 | G307: 5.98 | H307: 5.4 | I307: 34.58 | J307: 211 | K307: 54-1г, 54-3осус | L307: 18.22
D308: напиток | E308: Чай с лимоном и сахаром | F308: 200 | G308: 0.25 | H308: 0.05 | I308: 6.61 | J308: 27.9 | K308: 54-3н | L308: 3.24
D309: хлеб бел. | E309: Хлеб пшеничный | F309: 30 | G309: 2.3 | H309: 0.25 | I309: 14.75 | J309: 70.3 | K309: Пром | L309: 1.88
D310: хлеб черн. | E310: Хлеб ржаной | F310: 25 | G310: 1.7 | H310: 0.3 | I310: 8.4 | J310: 42.7 | K310: Пром | L310: 2.35
D316: итого | F316: =SUM(F304:F315) -> 855 | G316: =SUM(G304:G315) -> 35.81 | H316: =SUM(H304:H315) -> 25.32 | I316: =SUM(I304:I315) -> 101.2 | J316: =SUM(J304:J315) -> 775.5 | L316: =SUM(L304:L315) -> 133.45
A317: =A294 -> 3 | B317: =B294 -> 3 | C317: Итого за день: | F317: =F303+F316 -> 1640 | G317: =G303+G316 -> 58.87 | H317: =H303+H316 -> 55.81 | I317: =I303+I316 -> 254.11 | J317: =J303+J316 -> 1753.7 | L317: =L303+L316 -> 254.17
A318: 3 | B318: 4 | C318: Завтрак | D318: гор.блюдо | E318: Каша жидкая молочная рисовая | F318: 250 | G318: 5.74 | H318: 7.2 | I318: 30.33 | J318: 209 | K318: 54-26к | L318: 25.2
D320: гор.напиток | E320: Кофейный напиток с молоком | F320: 200 | G320: 3.8 | H320: 2.9 | I320: 11.3 | J320: 86 | K320: 54-23гн | L320: 13.74
D321: хлеб | E321: Хлеб пшеничный с маслом сливочным (порциями), хлеб ржаной | F321: 85 | G321: 5.53 | H321: 7.95 | I321: 33.08 | J321: 226 | K321: Пром,54-19з | L321: 19.83
D322: фрукты | E322: Банан | F322: 200 | G322: 3 | H322: 1 | I322: 42 | J322: 189 | K322: Пром | L322: 46
D323: сладкое | E323: Печенье | F323: 50 | G323: 3.75 | H323: 4.9 | I323: 37.2 | J323: 207.9 | K323: Пром | L323: 13
D328: итого | F328: =SUM(F318:F327) -> 785 | G328: =SUM(G318:G327) -> 21.82 | H328: =SUM(H318:H327) -> 23.95 | I328: =SUM(I318:I327) -> 153.91 | J328: =SUM(J318:J327) -> 917.9 | L328: =SUM(L318:L327) -> 117.77
A329: 3 | B329: =B318 -> 4 | C329: Обед | D329: закуска | E329: Огурец в нарезке | F329: 90 | G329: 0.72 | H329: 0.09 | I329: 2.25 | J329: 12.7 | K329: 54-2з | L329: 26.52
... 94 more rows
